bitfinex/quotes_BTCUSD_20250303
["timestamp","ask_amount","ask_price","bid_price","bid_amount"]
[1741013697655,0.099,90400.0,90372.0,0.00068163]
[1741013697852,0.06586148,90404.0,90372.0,0.00068163]
[1741013698113,0.099,90399.0,90372.0,0.00068163]
[1741013698266,0.099,90400.0,90373.0,0.0001701]
[1741013698498,0.01389963,90408.0,90373.0,0.0001701]
[1741013698499,0.099,90387.0,90374.0,0.00068164]
[1741013698747,0.01389963,90408.0,90373.0,0.0001701]
[1741013698748,0.06586148,90396.0,90375.0,0.00068235]
[1741013698948,0.01389963,90408.0,90375.0,0.00068235]
[1741013699263,0.06586148,90404.0,90376.0,0.221297]
[1741013699430,0.01389963,90408.0,90377.0,0.00068128]
[1741013699845,0.01389963,90408.0,90407.0,0.165916]
[1741013699995,0.01389963,90408.0,90407.0,1.07592465]
[1741013700198,0.01389963,90408.0,90407.0,1.24184065]
[1741013700968,0.01389963,90408.0,90407.0,1.54184065]
[1741013701153,0.0003436,90418.0,90407.0,1.54184065]
[1741013701154,6e-07,90418.0,90417.0,0.50003652]
[1741013701353,0.06586148,90476.0,90417.0,0.50003652]
[1741013701354,0.099,90466.0,90429.0,0.03413852]
[1741013701575,6e-07,90430.0,90429.0,1.62571701]
[1741013701767,0.0014806,90449.0,90429.0,1.12502465]
[1741013701944,0.0014806,90449.0,90430.0,0.00067857]
[1741013701945,0.06586148,90444.0,90430.0,0.00067857]
[1741013702129,0.099,90448.0,90430.0,0.00067857]
[1741013702332,0.0014806,90449.0,90429.0,1.07592465]
[1741013702532,0.00160053,90449.0,90448.0,0.165841]
[1741013702719,0.00160053,90449.0,90448.0,1.24244511]
[1741013702913,0.00160053,90449.0,90448.0,1.54176565]
[1741013703157,0.00160053,90449.0,90448.0,1.5895505]
[1741013703361,0.0792,90507.0,90474.0,0.165793]
[1741013703567,0.099,90512.0,90474.0,1.54121765]
[1741013703900,0.0490432,90539.0,90474.0,1.54121765]
[1741013703901,6e-07,90505.0,90504.0,0.49987652]
[1741013704033,0.0003432,90539.0,90526.0,0.165698]
[1741013704234,0.00241011,90527.0,90526.0,1.54229788]
[1741013704434,0.00040011,90527.0,90526.0,1.57576117]
[1741013704707,1.1e-07,90527.0,90526.0,1.57576117]
[1741013704884,7e-05,90535.0,90534.0,0.25936237]
[1741013705084,0.0832,90603.0,90534.0,0.25936237]
[1741013705085,9.9e-07,90557.0,90552.0,0.3]
[1741013705313,9.9e-07,90557.0,90556.0,0.51432237]
[1741013705511,0.12147025,90608.0,90570.0,0.51429637]
[1741013705712,0.0003408,90630.0,90570.0,1.54154165]
[1741013705713,0.06586148,90611.0,90570.0,1.54154165]
[1741013705863,0.0003408,90630.0,90579.0,0.19973952]
[1741013706081,0.099,90597.0,90579.0,0.16627268]
[1741013706300,0.0003408,90630.0,90579.0,0.00067168]
[1741013706301,0.06586148,90600.0,90579.0,0.00067168]
[1741013706504,0.06586148,90591.0,90579.0,0.00067168]
[1741013706712,0.06586148,90578.0,90571.0,0.00067317]
[1741013706909,0.06586148,90576.0,90570.0,1.07592465]
[1741013707293,0.099,90571.0,90570.0,1.07592465]
[1741013707855,0.099,90579.0,90570.0,1.07592465]
[1741013707977,0.099,90609.0,90579.0,0.165601]
[1741013708182,0.1,90666.0,90579.0,0.165601]
[1741013708183,0.0993428,90634.0,90579.0,0.49973952]
[1741013708384,0.0993428,90634.0,90577.0,0.220806]
[1741013708385,0.0003428,90634.0,90593.0,0.49971352]
[1741013708585,0.0003428,90634.0,90605.0,0.49969152]
[1741013708828,0.0003428,90634.0,90629.0,0.465509]
[1741013709035,0.0003428,90634.0,90629.0,1.24143365]
[1741013709373,0.099,90631.0,90629.0,1.07592465]
[1741013709649,0.0003428,90634.0,90629.0,1.07592465]
[1741013709650,0.00074059,90630.0,90629.0,1.07592465]
[1741013709829,0.00074059,90630.0,90620.0,1.07592465]
[1741013710028,0.00074059,90630.0,90621.0,0.00058566]
[1741013710229,0.00074059,90630.0,90629.0,0.165509]
[1741013710430,0.00074059,90630.0,90629.0,0.00058436]
[1741013710661,0.06586148,90622.0,90620.0,1.07592465]
[1741013710802,0.099,90628.0,90620.0,1.07592465]
[1741013711008,0.099,90601.0,90596.0,1.07592465]
[1741013711213,0.06586148,90582.0,90574.0,1.07592465]
[1741013711414,0.00193146,90619.0,90540.0,0.12010448]
[1741013711415,0.06586148,90561.0,90560.0,1.07592465]
[1741013711678,0.220773,90591.0,90540.0,0.09828305]
[1741013711679,0.06586148,90541.0,90540.0,0.13150005]
[1741013711849,0.099,90541.0,90540.0,0.09828305]
[1741013712062,0.099,90555.0,90540.0,1.1742077]
[1741013712283,0.0808,90572.0,90540.0,0.09828305]
[1741013712284,0.16486148,90541.0,90540.0,0.09828305]
[1741013712457,0.16486148,90541.0,90540.0,0.02030302]
[1741013712659,0.0497,90545.0,90503.0,1.07592465]
[1741013712660,0.099,90527.0,90503.0,1.07592465]
[1741013713027,0.16486148,90519.0,90504.0,0.00059005]
[1741013713221,0.16486148,90519.0,90456.0,1.07592465]
[1741013713425,0.16486148,90519.0,90455.0,0.15948]
[1741013713426,0.099,90493.0,90468.0,1.07592465]
[1741013713649,0.16486148,90493.0,90469.0,0.00059148]
[1741013713868,0.06586148,90506.0,90469.0,1.07651613]
[1741013714019,0.44408196,90530.0,90493.0,0.00059082]
[1741013714020,0.06586148,90513.0,90493.0,0.00059082]
[1741013714219,0.099,90513.0,90493.0,0.00059082]
[1741013714423,0.099,90513.0,90494.0,0.00059052]
[1741013714629,4e-05,90527.0,90494.0,0.00059052]
[1741013714630,4e-05,90527.0,90525.0,0.165698]
[1741013714830,4e-05,90527.0,90526.0,0.01513004]
[1741013715198,0.099,90583.0,90535.0,0.03413852]
[1741013715327,0.076,90629.0,90536.0,0.00058738]
[1741013715328,0.099,90561.0,90536.0,0.00058738]
[1741013715531,0.099,90561.0,90492.0,0.003]
[1741013715532,0.06586148,90528.0,90512.0,1.07592465]
[1741013715731,0.44601395,90560.0,90504.0,1.07592465]
[1741013715732,0.099,90526.0,90504.0,1.07592465]
[1741013715973,0.099,90540.0,90505.0,0.00058988]
[1741013716197,0.099,90527.0,90505.0,0.00058988]
[1741013716402,0.0808,90572.0,90492.0,0.002]
[1741013716403,0.099,90511.0,90494.0,0.00058993]
[1741013716694,0.0788,90584.0,90513.0,0.03413852]
[1741013716695,0.099,90556.0,90513.0,0.03413852]
[1741013716900,0.099,90563.0,90514.0,0.00058859]
[1741013717054,0.099,90550.0,90514.0,0.00058859]
[1741013717233,0.099,90541.0,90521.0,0.165705]
[1741013717435,0.1,90592.0,90487.0,0.03413852]
[1741013717436,0.06586148,90534.0,90511.0,1.07592465]
[1741013717636,0.099,90544.0,90507.0,0.01454085]
[1741013717875,0.06586148,90556.0,90551.0,0.165612]
[1741013717876,0.099,90552.0,90551.0,0.165612]
[1741013718084,0.06598127,90556.0,90555.0,0.165645]
[1741013718298,0.06586148,90548.0,90539.0,0.165674]
[1741013718535,0.00011979,90556.0,90554.0,0.165645]
[1741013718706,7.9e-07,90556.0,90555.0,0.34867937]
[1741013718864,0.099,90591.0,90555.0,0.3332]
[1741013719070,0.00201,90606.0,90583.0,0.165593]
[1741013719275,0.00046097,90584.0,90583.0,0.465593]
[1741013719530,0.00046097,90584.0,90583.0,0.165593]
[1741013719878,0.00046097,90584.0,90583.0,0.21427237]
[1741013720124,9.7e-07,90584.0,90583.0,0.18013385]
[1741013720327,9.7e-07,90584.0,90583.0,0.165593]
[1741013721194,9.7e-07,90584.0,90583.0,0.465593]
[1741013721392,9.7e-07,90584.0,90583.0,0.46549681]
[1741013721689,0.00201,90606.0,90605.0,0.165553]
[1741013721965,0.10101,90606.0,90605.0,1.07592465]
[1741013722202,0.10101,90606.0,90549.0,1.07592465]
[1741013722203,0.099,90573.0,90549.0,1.07592465]
[1741013722489,0.06586148,90526.0,90504.0,1.07592465]
[1741013722745,0.06586148,90526.0,90492.0,0.02414088]
[1741013722746,0.16486148,90509.0,90508.0,0.033228]
[1741013722986,0.099,90520.0,90501.0,0.00040011]
[1741013723245,0.16486148,90502.0,90501.0,0.00040011]
[1741013723743,0.099,90518.0,90501.0,0.00040011]
[1741013723986,0.220851,90559.0,90501.0,0.00040011]
[1741013723987,0.00705493,90521.0,90501.0,0.00040011]
[1741013724234,0.00705493,90541.0,90516.0,0.06990485]
[1741013724433,0.06000936,90585.0,90551.0,0.3]
[1741013724644,0.06000936,90585.0,90583.0,0.165593]
[1741013724645,0.00709493,90584.0,90583.0,0.165593]
[1741013724881,4e-05,90584.0,90583.0,0.165593]
[1741013725053,2.1e-07,90585.0,90583.0,0.165593]
[1741013725208,2.1e-07,90585.0,90584.0,0.06990485]
[1741013725416,0.0003408,90630.0,90605.0,0.465553]
[1741013725777,0.0003406,90662.0,90631.0,0.465506]
[1741013725997,0.0003406,90662.0,90631.0,1.5559715]
[1741013726209,0.0003406,90662.0,90631.0,1.7153715]
[1741013726337,0.00240939,90632.0,90631.0,1.40083065]
[1741013726727,0.00240939,90632.0,90608.0,0.06990485]
[1741013726728,0.00705493,90618.0,90610.0,1.07592465]
[1741013726924,0.00705493,90604.0,90603.0,0.165557]
[1741013727129,0.00705493,90590.0,90589.0,1.07592465]
[1741013727335,0.00705493,90568.0,90567.0,0.01357156]
[1741013727538,0.1,90621.0,90567.0,0.01357156]
[1741013727539,0.00705493,90591.0,90567.0,1.07592465]
[1741013727754,0.00705493,90592.0,90567.0,1.07592465]
[1741013727962,0.00705493,90585.0,90567.0,1.07592465]
[1741013728352,0.00705493,90611.0,90567.0,1.07592465]
[1741013728559,0.00705493,90578.0,90567.0,1.07604442]
[1741013728761,0.00705493,90576.0,90567.0,0.00011977]
[1741013728936,0.00705493,90568.0,90567.0,0.00011977]
[1741013729173,0.03715008,90568.0,90567.0,0.00011977]
[1741013729372,0.03009515,90568.0,90567.0,0.00011977]
[1741013729526,0.03715008,90568.0,90567.0,0.00011977]
[1741013729733,0.00705493,90568.0,90567.0,0.00011977]
[1741013729908,0.00705493,90582.0,90567.0,0.00011977]
[1741013730109,0.045,90603.0,90567.0,0.00011977]
[1741013730110,0.00705493,90568.0,90567.0,0.00011977]
[1741013730431,0.00705493,90574.0,90567.0,0.00011977]
[1741013730633,0.1,90628.0,90567.0,0.00011977]
[1741013730634,0.03009515,90609.0,90583.0,0.165593]
[1741013730812,0.0923,90633.0,90613.0,0.165539]
[1741013730813,0.00705493,90614.0,90613.0,0.165539]
[1741013731005,0.00705493,90628.0,90610.0,0.3]
[1741013731233,0.015,90633.0,90631.0,0.165506]
[1741013731430,0.015,90633.0,90631.0,1.24143065]
[1741013731852,0.015,90633.0,90629.0,0.220678]
[1741013731853,0.015,90633.0,90620.0,1.07592465]
[1741013732052,0.00705493,90630.0,90620.0,1.07592465]
[1741013732266,0.015,90633.0,90550.0,0.0476]
[1741013732267,0.00705493,90600.0,90550.0,0.0476]
[1741013732470,0.00705493,90568.0,90552.0,1.07592465]
[1741013732667,0.078,90620.0,90540.0,0.165671]
[1741013732668,0.00705493,90557.0,90540.0,0.165671]
[1741013732890,0.00705493,90541.0,90530.0,0.02405524]
[1741013733088,0.00705493,90531.0,90530.0,0.02405524]
[1741013733455,0.03715008,90531.0,90530.0,0.02405524]
[1741013733840,0.03009515,90519.0,90514.0,0.0003396]
[1741013734044,0.03715008,90501.0,90492.0,0.002]
[1741013734246,0.20295608,90467.0,90466.0,0.002]
[1741013734424,0.03908496,90467.0,90466.0,0.002]
[1741013734624,0.00705493,90467.0,90466.0,0.002]
[1741013734832,0.03715008,90467.0,90466.0,0.002]
[1741013735197,0.03715008,90440.0,90405.0,0.09644183]
[1741013735478,0.00705493,90440.0,90439.0,0.00240011]
[1741013735675,0.03009515,90450.0,90439.0,0.00240011]
[1741013735830,0.00705493,90462.0,90461.0,0.165817]
[1741013736209,0.00705493,90440.0,90439.0,0.00240011]
[1741013736411,0.00705493,90440.0,90439.0,0.16825711]
[1741013736625,0.00205493,90440.0,90439.0,0.00240011]
[1741013737048,0.03215008,90440.0,90439.0,0.00240011]
[1741013737289,0.33215008,90440.0,90439.0,0.00240011]
[1741013737489,0.03215008,90431.0,90376.0,0.221295]
[1741013737681,0.03215008,90431.0,90408.0,0.165912]
[1741013737884,0.00193536,90441.0,90352.0,0.06990485]
[1741013737885,0.03215008,90424.0,90352.0,0.06990485]
[1741013738023,0.19947946,90424.0,90423.0,0.00046057]
[1741013738224,0.03215008,90424.0,90423.0,0.00046057]
[1741013738424,0.00205493,90424.0,90423.0,0.16634657]
[1741013738641,0.00205493,90434.0,90423.0,0.00046057]
[1741013738858,0.00205493,90427.0,90426.0,0.165881]
[1741013739086,0.03009515,90454.0,90423.0,0.00046057]
[1741013739285,0.00205493,90424.0,90423.0,0.00046057]
[1741013739638,0.03215008,90424.0,90423.0,0.00046057]
[1741013740088,0.00205493,90424.0,90423.0,0.00046057]
[1741013740464,0.00205493,90429.0,90423.0,0.00046057]
[1741013740661,0.03215008,90424.0,90423.0,0.00046057]
[1741013740861,0.03408588,90424.0,90423.0,0.00046057]
[1741013741143,0.19805308,90414.0,90387.0,0.002]
[1741013741319,0.03215008,90388.0,90387.0,0.002]
[1741013741832,0.03215008,90388.0,90387.0,0.00211979]
[1741013742413,0.00205493,90388.0,90387.0,0.00211979]
[1741013742613,0.03215008,90388.0,90387.0,0.00211979]
[1741013742936,0.19810108,90388.0,90387.0,0.00211979]
[1741013743095,0.03408653,90388.0,90387.0,0.00211979]
[1741013743296,0.03215008,90388.0,90387.0,0.00211979]
[1741013743524,0.00205493,90388.0,90387.0,0.00211979]
[1741013743864,0.1,90433.0,90387.0,0.00211979]
[1741013743865,0.02678428,90467.0,90387.0,0.00211979]
[1741013744071,0.3,90449.0,90387.0,0.00211979]
[1741013744279,4e-05,90388.0,90387.0,0.00211979]
[1741013744483,4e-05,90388.0,90387.0,0.10211979]
[1741013744683,4e-05,90388.0,90387.0,0.00211979]
[1741013744911,0.165991,90388.0,90387.0,0.00211979]
[1741013745098,4e-05,90388.0,90387.0,0.00211979]
[1741013745314,4e-05,90388.0,90387.0,0.10211979]
[1741013745492,4e-05,90388.0,90387.0,0.50366838]
[1741013745696,4e-05,90388.0,90387.0,0.00211979]
[1741013746267,4e-05,90388.0,90387.0,0.10366864]
[1741013746268,8e-05,90388.0,90387.0,0.10366864]
[1741013746640,8e-05,90388.0,90387.0,0.00211979]
[1741013748816,8e-05,90388.0,90373.0,0.0001701]
[1741013748817,0.165976,90374.0,90373.0,0.0001701]
[1741013749067,0.16741983,90374.0,90373.0,0.00028978]
[1741013749438,0.00144383,90374.0,90351.0,0.19763058]
[1741013749636,0.00236942,90382.0,90339.0,0.00056931]
[1741013749815,8e-05,90388.0,90339.0,0.00056931]
[1741013749816,0.00144383,90381.0,90339.0,0.00056931]
[1741013750768,0.00144383,90381.0,90340.0,0.00154963]
[1741013750899,8e-05,90388.0,90339.0,0.00056931]
[1741013750900,4e-05,90382.0,90339.0,0.00056931]
[1741013751101,0.3,90381.0,90339.0,0.00056931]
[1741013751375,0.00144383,90380.0,90339.0,0.00056931]
[1741013751775,0.00144383,90380.0,90340.0,0.09763058]
[1741013751974,0.00144383,90380.0,90339.0,0.00056931]
[1741013752333,0.166039,90340.0,90339.0,0.00056931]
[1741013752540,0.00144383,90340.0,90339.0,0.00056931]
[1741013752698,0.44110092,90380.0,90339.0,0.00056931]
[1741013752699,0.221322,90366.0,90339.0,0.00056931]
[1741013752898,0.221329,90363.0,90339.0,0.00056931]
[1741013753129,0.221361,90350.0,90339.0,0.00056931]
[1741013753332,0.44110092,90380.0,90339.0,0.00056931]
[1741013753534,0.3,90377.0,90339.0,0.00056931]
[1741013753837,0.3,90373.0,90339.0,0.00056931]
[1741013754005,0.00144383,90372.0,90339.0,0.00056931]
[1741013754206,0.03158821,90372.0,90339.0,0.00056931]
[1741013754416,0.00144383,90372.0,90339.0,0.00056931]
[1741013754615,0.00144383,90372.0,90347.0,0.09763058]
[1741013754792,0.00148383,90382.0,90347.0,0.09763058]
[1741013754994,0.44110092,90380.0,90339.0,0.00056931]
[1741013755221,0.00144383,90379.0,90345.0,0.1]
[1741013755465,0.00144383,90379.0,90351.0,0.1]
[1741013755789,0.00144383,90379.0,90354.0,0.1]
[1741013755989,0.22273483,90379.0,90351.0,0.1]
[1741013756250,4e-05,90382.0,90354.0,0.1]
[1741013756672,4e-05,90382.0,90340.0,0.00154961]
[1741013756673,0.44110092,90380.0,90340.0,0.00154961]
[1741013756862,0.00144383,90379.0,90339.0,0.10056931]
[1741013757066,0.00144383,90379.0,90339.0,0.00056931]
[1741013757276,0.165969,90378.0,90341.0,0.1]
[1741013757478,0.165969,90378.0,90339.0,0.00056931]
[1741013757479,0.00144383,90378.0,90354.0,0.1]
[1741013757789,0.00144383,90378.0,90341.0,0.09763058]
[1741013757960,0.00144383,90378.0,90339.0,0.00056931]
[1741013758157,0.00144383,90378.0,90355.0,0.1]
[1741013758345,0.00144383,90378.0,90339.0,0.09819989]
[1741013758346,0.00144383,90378.0,90345.0,0.1]
[1741013758544,0.00144383,90378.0,90355.0,0.1]
[1741013758960,0.44110092,90370.0,90345.0,0.1]
[1741013759165,0.16599,90367.0,90348.0,0.1]
[1741013759385,0.44110092,90370.0,90348.0,0.1]
[1741013759595,0.00144383,90369.0,90348.0,0.1]
[1741013759792,4e-05,90382.0,90355.0,0.1]
[1741013759793,0.165991,90366.0,90355.0,0.1]
[1741013760049,0.165966,90380.0,90356.0,0.1]
[1741013760257,4e-05,90382.0,90357.0,0.09917987]
[1741013760481,4e-05,90382.0,90339.0,0.00056931]
[1741013760685,0.60708592,90370.0,90348.0,0.1]
[1741013760917,0.00144383,90369.0,90340.0,0.1]
[1741013761120,0.00144383,90369.0,90339.0,0.00056931]
[1741013761299,0.166039,90340.0,90339.0,0.00056931]
[1741013761677,0.16748283,90340.0,90339.0,1e-08]
[1741013761901,0.166048,90335.0,90334.0,0.00196001]
[1741013762077,0.16749183,90335.0,90334.0,0.00196001]
[1741013762726,0.0003979,90340.0,90334.0,0.00196001]
[1741013762922,0.0003979,90340.0,90339.0,0.26367158]
[1741013763124,0.0003979,90340.0,90339.0,0.36367158]
[1741013763321,0.02962079,90388.0,90373.0,0.1]
[1741013763573,0.02962079,90388.0,90381.0,0.09763058]
[1741013763712,0.02962079,90388.0,90381.0,0.1]
[1741013763927,0.0491633,90381.0,90373.0,0.00011993]
[1741013764139,0.0491633,90381.0,90373.0,0.10011993]
[1741013764344,0.0491633,90381.0,90380.0,0.09763058]
[1741013764547,0.0491633,90381.0,90380.0,0.49763058]
[1741013764752,0.0491633,90381.0,90379.0,0.165966]
[1741013764753,0.02954079,90396.0,90395.0,0.26356858]
[1741013764949,0.0769,90477.0,90379.0,1.07592465]
[1741013764950,0.165765,90490.0,90438.0,0.36348958]
[1741013765181,0.00840203,90499.0,90448.0,0.66347158]
[1741013765182,0.00144383,90489.0,90448.0,0.66347158]
[1741013765403,0.00840203,90499.0,90466.0,0.66343858]
[1741013765605,0.00840203,90499.0,90466.0,1.73936323]
[1741013765807,0.44110092,90530.0,90466.0,0.36423858]
[1741013765973,0.0482,90543.0,90466.0,0.1]
[1741013765974,0.221013,90493.0,90466.0,0.1]
[1741013766177,0.00236942,90502.0,90457.0,0.00154705]
[1741013766377,0.00236942,90502.0,90456.0,0.1]
[1741013766378,0.00073863,90467.0,90431.0,0.09763058]
[1741013766633,0.00144383,90466.0,90422.0,0.1]
[1741013766825,0.00144383,90466.0,90452.0,0.1]
[1741013767056,0.00073863,90467.0,90432.0,0.1]
[1741013767204,0.00073863,90467.0,90408.0,0.00154812]
[1741013767205,0.0003412,90431.0,90408.0,0.00154812]
[1741013767412,0.0003412,90431.0,90383.0,0.0498]
[1741013767413,0.0003412,90431.0,90397.0,0.1]
[1741013767612,0.0003412,90431.0,90383.0,0.033275]
[1741013767613,0.44166751,90430.0,90383.0,0.033275]
[1741013767819,0.0003412,90431.0,90416.0,0.09763058]
[1741013768001,0.0003412,90431.0,90430.0,0.36350458]
[1741013768202,0.0003412,90431.0,90430.0,1.43942923]
[1741013768490,0.00144383,90499.0,90466.0,0.1]
[1741013768879,0.00201,90501.0,90466.0,0.28187781]
[1741013768880,0.00073863,90467.0,90466.0,0.28187781]
[1741013769093,0.00201,90501.0,90474.0,0.36292358]
[1741013769295,0.00201,90501.0,90500.0,0.36287558]
[1741013769497,0.00212957,90501.0,90500.0,1.43880023]
[1741013769698,0.00212957,90501.0,90500.0,1.73880023]
[1741013769901,0.00212957,90501.0,90499.0,0.0995]
[1741013770028,0.00212957,90501.0,90459.0,0.0995]
[1741013770238,0.165788,90477.0,90464.0,0.0995]
[1741013770599,0.44022368,90474.0,90418.0,1.15252465]
[1741013770769,0.44022368,90440.0,90417.0,0.0995]
[1741013770977,0.44022368,90440.0,90414.0,1.17355523]
[1741013771180,0.44022368,90424.0,90387.0,0.1015]
[1741013771531,0.165951,90388.0,90387.0,0.002]
[1741013771729,0.48286127,90388.0,90387.0,0.002]
[1741013771941,0.48286127,90388.0,90333.0,0.09763058]
[1741013771942,0.44022368,90371.0,90337.0,0.09763058]
[1741013772146,0.165998,90362.0,90332.0,0.0001701]
[1741013772352,0.00144383,90370.0,90332.0,0.0001701]
[1741013772553,0.00144383,90370.0,90349.0,0.0995]
[1741013772757,0.44022368,90371.0,90364.0,0.0995]
[1741013772962,0.0495,90422.0,90361.0,0.00039863]
[1741013772963,0.44022368,90374.0,90361.0,0.00039863]
[1741013773163,0.01691027,90362.0,90332.0,0.0001701]
[1741013773364,0.3,90363.0,90332.0,0.0001701]
[1741013773365,0.166048,90335.0,90334.0,0.00225014]
[1741013773572,0.44022368,90351.0,90334.0,0.00225014]
[1741013773573,0.166046,90336.0,90334.0,0.00225014]
[1741013773727,0.00144383,90335.0,90334.0,0.00213021]
[1741013774301,0.16605,90334.0,90316.0,0.04646547]
[1741013774445,0.00144383,90333.0,90317.0,0.04646547]
[1741013774641,0.44022368,90330.0,90317.0,0.04646547]
[1741013774892,0.44022368,90330.0,90308.0,0.002]
[1741013774893,0.166095,90310.0,90308.0,0.002]
[1741013775065,0.00144383,90329.0,90288.0,0.03726052]
[1741013775066,0.00144383,90309.0,90288.0,0.03726052]
[1741013775273,0.3,90329.0,90288.0,0.03726052]
[1741013775274,0.01454085,90327.0,90288.0,0.03726052]
[1741013775495,0.01454085,90327.0,90287.0,0.09763058]
[1741013775496,0.00144383,90326.0,90293.0,0.03726052]
[1741013775719,0.44022368,90330.0,90308.0,0.0003979]
[1741013775720,0.221415,90328.0,90308.0,0.0003979]
[1741013775962,0.44022368,90330.0,90308.0,0.0003979]
[1741013775963,0.166096,90310.0,90308.0,0.0003979]
[1741013776164,0.00144383,90309.0,90308.0,0.0003979]
[1741013776685,0.31598468,90309.0,90308.0,0.0003979]
[1741013776860,0.466118,90297.0,90282.0,0.002]
[1741013777269,0.44179559,90280.0,90262.0,0.09763058]
[1741013777462,0.44179559,90280.0,90268.0,0.00248493]
[1741013777676,0.00144383,90279.0,90268.0,0.00248493]
[1741013777999,0.166129,90291.0,90276.0,0.00248493]
[1741013778277,0.166129,90291.0,90239.0,0.226077]
[1741013778278,0.166158,90276.0,90260.0,0.09763058]
[1741013778478,0.44179559,90270.0,90252.0,0.00248493]
[1741013778705,0.44179559,90270.0,90235.0,0.03333]
[1741013778706,0.00144383,90269.0,90256.0,0.09963058]
[1741013778885,0.44179559,90280.0,90270.0,0.09763058]
[1741013779125,0.44179559,90280.0,90256.0,0.002]
[1741013779312,0.44179559,90280.0,90271.0,0.00248493]
[1741013779452,0.44179559,90280.0,90276.0,0.00248493]
[1741013779658,0.02269491,90332.0,90282.0,0.09763058]
[1741013779659,0.44179559,90300.0,90282.0,0.09763058]
[1741013779860,0.00144383,90299.0,90275.0,0.00248493]
[1741013780060,0.44179559,90300.0,90284.0,0.00248493]
[1741013780061,0.44179559,90285.0,90284.0,0.00248493]
[1741013780259,0.166138,90286.0,90285.0,0.00248493]
[1741013780523,0.0300919,90283.0,90259.0,0.0001704]
[1741013780735,0.44179559,90270.0,90256.0,0.002]
[1741013780874,0.44179559,90270.0,90229.0,0.00355125]
[1741013780875,0.00144383,90269.0,90251.0,0.00248493]
[1741013781222,0.00144383,90269.0,90255.0,0.06639534]
[1741013781465,0.00144383,90269.0,90257.0,0.06630255]
[1741013781669,0.00144383,90280.0,90264.0,0.06630255]
[1741013781954,0.0300919,90283.0,90282.0,0.06869465]
[1741013782074,0.44179559,90292.0,90285.0,0.00248493]
[1741013782418,0.44179559,90292.0,90251.0,0.06620972]
[1741013782419,0.00184148,90286.0,90251.0,0.06620972]
[1741013782620,0.44179559,90261.0,90250.0,0.06620972]
[1741013782826,0.44225765,90270.0,90252.0,0.00248493]
[1741013783038,0.44225765,90280.0,90278.0,0.00248493]
[1741013783242,0.166216,90244.0,90220.0,0.0001706]
[1741013783476,0.166289,90204.0,90203.0,0.0011706]
[1741013783680,0.00144383,90229.0,90203.0,0.0011706]
[1741013783872,0.00144383,90229.0,90208.0,0.00248493]
[1741013783873,0.44225765,90213.0,90208.0,0.00248493]
[1741013783998,0.02852569,90253.0,90211.0,0.00248493]
[1741013784196,0.44225765,90230.0,90227.0,0.00248493]
[1741013784395,0.44225765,90230.0,90203.0,0.0011706]
[1741013784396,0.3,90236.0,90203.0,0.0011706]
[1741013784643,0.8845153,90237.0,90203.0,0.0011706]
[1741013784644,0.166288,90205.0,90203.0,0.0011706]
[1741013784894,0.166288,90205.0,90152.0,0.00155244]
[1741013784895,0.166333,90180.0,90168.0,0.0002407]
[1741013785119,0.166354,90169.0,90168.0,0.0002407]
[1741013785317,0.012,90176.0,90168.0,0.0002407]
[1741013785521,0.44225765,90189.0,90168.0,0.0002407]
[1741013785724,0.44225765,90189.0,90086.0,0.0799]
[1741013785725,0.02168035,90188.0,90086.0,0.0799]
[1741013786006,0.10011,90189.0,90086.0,0.0799]
[1741013786007,0.44225765,90130.0,90094.0,0.22199]
[1741013786211,0.00201,90107.0,90106.0,0.16245]
[1741013786624,0.44225765,90120.0,90081.0,0.033378]
[1741013786827,0.44225765,90120.0,90082.0,0.00155384]
[1741013787030,0.44225765,90120.0,90088.0,0.222005]
[1741013787228,0.44225765,90100.0,90063.0,0.033385]
[1741013787453,0.44225765,90100.0,90057.0,0.22208]
[1741013787628,0.44225765,90100.0,90064.0,0.00146095]
[1741013787833,0.44225765,90100.0,90051.0,0.00155407]
[1741013788318,0.00039643,90120.0,90051.0,0.0014612]
[1741013788706,0.00039643,90120.0,90119.0,0.166446]
[1741013789057,0.00039643,90120.0,90119.0,0.16635316]
[1741013789301,0.00039643,90120.0,90093.0,0.332986]
[1741013789302,0.00039643,90120.0,90101.0,0.0829]
[1741013789503,0.00039643,90120.0,90102.0,0.00155334]
[1741013789815,0.00039643,90120.0,90078.0,0.00155335]
[1741013790018,0.3,90110.0,90054.0,0.00155396]
[1741013790199,0.44225765,90110.0,90076.0,0.222032]
[1741013790413,0.44225765,90110.0,90053.0,0.0762]
[1741013790619,0.44225765,90110.0,90023.0,1.07592465]
[1741013790620,0.44225765,90110.0,90034.0,1.07592465]
[1741013790812,0.44225765,90110.0,90023.0,0.0803]
[1741013790813,0.166521,90079.0,90044.0,0.222113]
[1741013791057,0.44225765,90090.0,90045.0,0.00155453]
[1741013791275,0.44225765,90090.0,90024.0,0.1]
[1741013791499,0.0452,90121.0,90033.0,1.07592465]
[1741013791500,0.1,90108.0,90033.0,1.07592465]
[1741013791631,0.0452,90078.0,90006.0,1.07592465]
[1741013791816,0.44225765,90070.0,90020.0,0.00155493]
[1741013792026,0.00039619,90070.0,90002.0,0.1]
[1741013792228,0.44225765,90050.0,90028.0,0.0001707]
[1741013793036,0.10039619,90070.0,90028.0,0.0001707]
[1741013793037,0.44225765,90060.0,90028.0,0.0001707]
[1741013793257,0.00039619,90070.0,90028.0,0.0001707]
[1741013793258,0.44225765,90050.0,90028.0,0.0001707]
[1741013793659,0.1,90037.0,89993.0,0.002]
[1741013793861,0.01013241,89994.0,89993.0,0.002]
[1741013794008,0.01013241,89994.0,89993.0,0.00190701]
[1741013794230,0.05883241,89994.0,89993.0,0.00190701]
[1741013794435,0.05883241,89994.0,89910.0,0.08084116]
[1741013794436,0.16678,89939.0,89930.0,0.04254055]
[1741013794686,0.222351,89948.0,89910.0,4.116e-05]
[1741013794687,0.1,89936.0,89910.0,4.116e-05]
[1741013794895,0.0487,89944.0,89910.0,4.116e-05]
[1741013794896,0.1,89924.0,89910.0,4.116e-05]
[1741013795067,0.1,89938.0,89917.0,0.00026164]
[1741013795396,0.0487,89944.0,89844.0,0.1]
[1741013795397,0.166785,89936.0,89844.0,0.1]
[1741013795532,0.0720637,89937.0,89833.0,0.14331951]
[1741013795533,0.0135,89937.0,89852.0,0.1184811]
[1741013795735,0.0487,89944.0,89860.0,1.07592465]
[1741013795918,0.44225765,89940.0,89863.0,1.07592465]
[1741013796118,0.44225765,89940.0,89895.0,0.22248]
[1741013796318,0.0487,89944.0,89861.0,0.1]